bitfinex-derivatives/quotes_SOLF0:USTF0_20260127
["timestamp","ask_amount","ask_price","bid_price","bid_amount"]
[1769526428548,8.9789192,123.91,123.86,20.44520246]
[1769526432062,1.7056192,123.91,123.86,20.44520246]
[1769526432355,19.75126437,123.95,123.86,20.44520246]
[1769526432356,1.7056192,123.93,123.86,20.44520246]
[1769526432747,7.2714,123.94,123.88,20.44520246]
[1769526432949,1.7056192,123.96,123.88,20.44520246]
[1769526433348,1.7056192,123.96,123.91,20.44520246]
[1769526434056,8.9758192,123.96,123.91,20.44520246]
[1769526434258,1.7056192,123.94,123.88,20.44520246]
[1769526434760,8.9772192,123.94,123.88,20.44520246]
[1769526436160,1.7056192,123.94,123.89,20.44520246]
[1769526436755,113.0762,123.98,123.91,20.44520246]
[1769526436756,21.45688357,123.98,123.91,20.44520246]
[1769526437153,1.7056192,123.96,123.91,20.44520246]
[1769526437459,1.7056192,123.96,123.91,27.71820246]
[1769526439458,8.9758192,123.96,123.91,20.44520246]
[1769526439762,21.45688357,123.96,123.88,20.44520246]
[1769526439959,1.7056192,123.94,123.88,20.44520246]
[1769526440351,1.7056192,123.94,123.88,27.72000246]
[1769526440352,8.9771192,123.94,123.88,27.72000246]
[1769526441353,1.7056192,123.92,123.88,20.44520246]
[1769526441757,132.81046437,124.0,123.9,20.44520246]
[1769526442063,1.7056192,123.97,123.91,27.71830246]
[1769526442257,1.7056192,123.97,123.91,20.44520246]
[1769526442563,1.7056192,123.97,123.92,7.2725]
[1769526444766,8.9741192,123.99,123.93,26.42946554]
[1769526445059,1.7056192,124.01,123.94,19.15756554]
[1769526445264,1.7056192,124.02,123.94,19.15756554]
[1769526445967,7.2673,124.01,123.95,26.42826554]
[1769526446160,1.7056192,124.02,123.95,19.15756554]
[1769526446364,1.7056192,124.0,123.95,19.15756554]
[1769526446565,8.9734192,124.0,123.93,19.15756554]
[1769526446864,1.7056192,124.0,123.93,19.15756554]
[1769526447063,1.7056192,123.99,123.93,19.15756554]
[1769526447564,19.46417887,124.01,123.93,19.15756554]
[1769526448066,19.46417887,124.0,123.9,19.15756554]
[1769526449662,23.81134624,124.0,123.9,19.15756554]
[1769526449967,7.2691,123.98,123.91,26.43046554]
[1769526450565,7.2691,123.98,123.89,292.78]
[1769526450566,31.07964624,124.0,123.93,19.15756554]
[1769526450768,138.24417967,124.03,123.93,19.15756554]
[1769526451066,19.46417887,124.02,123.93,19.15756554]
[1769526451262,7.2678,124.01,123.93,19.15756554]
[1769526451564,1.40393343,124.03,123.93,19.15756554]
[1769526451756,7.2672,124.01,123.95,26.42816554]
[1769526452366,7.268,124.0,123.95,19.15756554]
[1769526453263,7.2685,123.99,123.92,19.15756554]
[1769526454062,11.61486737,124.01,123.94,19.15756554]
[1769526454268,7.2677,124.01,123.94,19.15756554]
[1769526454664,1.40393343,124.03,123.96,19.15756554]
[1769526455167,7.2667,124.02,123.96,19.15756554]
[1769526455564,1.40393343,124.03,123.96,19.15756554]
[1769526455770,8.67043343,124.03,123.96,19.15756554]
[1769526456167,7.267,124.02,123.96,26.42756554]
[1769526456370,7.267,124.02,123.96,19.15756554]
[1769526456764,7.267,124.02,123.97,19.15756554]
[1769526459675,19.46417887,124.03,123.94,19.15756554]
[1769526460480,7.2667,124.02,123.95,26.42826554]
[1769526461276,7.2667,124.02,123.96,19.15756554]
[1769526461879,23.81134624,124.03,123.94,26.42886554]
[1769526462484,19.46417887,124.0,123.92,26.42966554]
[1769526462874,23.81134624,124.0,123.92,19.15756554]
[1769526463884,19.46417887,124.03,123.93,19.15756554]
[1769526464777,132.49717887,124.03,123.94,19.15756554]
[1769526464976,19.46417887,124.02,123.94,19.15756554]
[1769526465886,19.46417887,124.02,123.94,26.42876554]
[1769526466384,7.2679,124.0,123.94,19.15756554]
[1769526466582,19.46417887,124.02,123.94,19.15756554]
[1769526466883,23.81134624,124.01,123.94,19.15756554]
[1769526467079,7.2685,123.99,123.94,19.15756554]
[1769526467785,7.2691,123.98,123.94,19.15756554]
[1769526467986,19.46417887,124.0,123.91,19.15756554]
[1769526468188,19.46417887,123.99,123.91,19.15756554]
[1769526469890,7.2691,123.98,123.91,26.43066554]
[1769526470482,7.2691,123.98,123.92,19.15756554]
[1769526471087,7.2684,123.99,123.93,19.15756554]
[1769526472899,19.46417887,123.99,123.91,19.15756554]
[1769526474998,7.2701,123.97,123.91,19.15756554]
[1769526475400,19.99044457,123.97,123.89,26.52531904]
[1769526475601,19.99044457,123.97,123.89,19.25101904]
[1769526476898,7.2708,123.95,123.89,26.52531904]
[1769526477397,4.34716737,123.98,123.9,19.25101904]
[1769526477695,4.34716737,123.98,123.91,19.25101904]
[1769526479002,7.2703,123.96,123.91,19.25101904]
[1769526479203,4.34716737,123.98,123.91,19.25101904]
[1769526479405,4.34716737,123.98,123.92,7.2724]
[1769526479595,27.25934457,123.99,123.93,19.25101904]
[1769526480205,7.2691,123.98,123.93,19.25101904]
[1769526483208,7.2696,123.97,123.93,19.25101904]
[1769526485006,7.2688,123.99,123.93,19.25101904]
[1769526485304,19.99044457,124.02,123.93,19.25101904]
[1769526485505,4.34716737,124.04,123.93,19.25101904]
[1769526485506,7.2663,124.03,123.97,19.25101904]
[1769526485910,4.34716737,124.04,123.97,26.52051904]
[1769526486107,24.33761194,124.07,123.98,19.25101904]
[1769526486500,7.2651,124.05,123.98,26.51941904]
[1769526486706,25.74106411,124.07,123.98,19.25101904]
[1769526487106,7.2649,124.06,123.99,26.51941904]
[1769526487306,19.99044457,124.06,123.99,19.25101904]
[1769526487515,317.05044457,124.09,124.0,19.25101904]
[1769526487716,317.05044457,124.09,124.01,19.25101904]
[1769526487918,324.31304457,124.09,124.01,26.51811904]
[1769526488216,19.99044457,124.09,124.01,26.51811904]
[1769526490015,27.25314457,124.09,124.01,26.51811904]
[1769526490215,19.99044457,124.09,124.01,26.51811904]
[1769526490616,19.99044457,124.12,124.03,19.25101904]
[1769526491020,21.39333097,124.12,124.03,19.25101904]
[1769526491514,21.39333097,124.12,124.05,19.25101904]
[1769526492215,28.65423097,124.12,124.05,19.25101904]
[1769526494517,7.2614,124.11,124.05,19.25101904]
[1769526495307,7.262,124.1,124.05,19.25101904]
[1769526498826,7.262,124.1,124.03,7.266]
[1769526498827,7.2628,124.09,124.03,19.25101904]
[1769526499322,21.39333097,124.12,124.03,7.266]
[1769526499521,21.39333097,124.12,124.04,19.25101904]
[1769526500327,7.2615,124.11,124.05,19.25101904]
[1769526503924,7.2623,124.1,124.05,19.25101904]
[1769526504116,114.3514864,124.12,124.05,19.25101904]
[1769526504428,20.53843349,124.11,124.05,19.25101904]
[1769526504629,20.53843349,124.09,124.03,19.29796892]
[1769526505925,7.2639,124.07,124.03,19.29796892]
[1769526507631,20.53843349,124.09,124.0,7.2674]
[1769526507632,7.2646,124.06,124.0,26.56536892]
[1769526507824,24.88560086,124.07,123.99,19.29796892]
[1769526508622,137.88020086,124.07,123.99,19.29796892]
[1769526508832,7.2661,124.03,123.99,19.29796892]
[1769526511227,7.2655,124.04,123.99,19.29796892]
[1769526511631,20.53843349,124.04,123.96,19.29796892]
[1769526511840,7.2673,124.01,123.96,19.29796892]
[1769526512640,7.2678,124.0,123.96,19.29796892]
[1769526513435,7.2685,123.99,123.93,19.29796892]
[1769526514034,27.80613349,124.01,123.93,19.29796892]
[1769526514234,20.53843349,124.01,123.93,19.29796892]
[1769526514637,24.88101568,124.0,123.93,19.29796892]
[1769526515436,7.2691,123.98,123.93,19.29796892]
[1769526515625,24.88101568,124.0,123.93,19.29796892]
[1769526515626,4.34258219,124.0,123.93,19.29796892]
[1769526516039,7.2684,123.99,123.93,19.29796892]
[1769526517036,4.34258219,124.0,123.93,26.56986892]
[1769526517233,4.34258219,124.0,123.94,19.29796892]
[1769526519034,4.34258219,124.0,123.94,26.56926892]
[1769526519339,4.34258219,124.03,123.95,19.29796892]
[1769526519539,7.2669,124.02,123.95,19.29796892]
[1769526520137,7.2669,124.02,123.96,19.29796892]
[1769526520739,7.2673,124.01,123.96,19.29796892]
[1769526521127,11.60918219,124.03,123.96,19.29796892]
[1769526521531,24.88101568,124.03,123.96,19.29796892]
[1769526522537,24.88101568,124.03,123.97,19.29796892]
[1769526522937,20.53843349,124.05,123.97,19.29796892]
[1769526524136,20.53843349,124.05,123.98,19.29796892]
[1769526526041,7.2661,124.03,123.98,19.29796892]
[1769526526242,20.53843349,124.05,123.98,19.29796892]
[1769526526641,7.2655,124.04,123.99,19.29796892]
[1769526527432,308.62728219,124.06,123.99,26.56626892]
[1769526527845,321.90101568,124.06,123.99,26.56626892]
[1769526528242,321.90101568,124.06,123.99,19.29796892]
[1769526528445,7.2642,124.07,123.99,19.29796892]
[1769526529341,7.2634,124.08,124.02,19.29796892]
[1769526529743,7.2637,124.07,124.02,19.29796892]
[1769526530134,133.51473349,124.09,124.02,19.29796892]
[1769526530339,20.53843349,124.07,123.99,19.29796892]
[1769526530540,24.88101568,124.07,123.99,19.29796892]
[1769526531042,20.53843349,124.06,123.95,19.29796892]
[1769526531240,24.88101568,124.04,123.95,19.29796892]
[1769526531636,7.2673,124.01,123.95,19.29796892]
[1769526532749,7.2673,124.01,123.95,26.56866892]
[1769526533554,4.34258219,124.04,123.97,19.29796892]
[1769526534146,24.88101568,124.04,123.97,19.29796892]
[1769526534355,7.2667,124.02,123.97,19.29796892]
[1769526535551,1.70277251,124.01,123.97,19.29796892]
[1769526538449,1.70277251,124.02,123.98,19.94405317]
[1769526539151,1.70277251,124.02,123.96,19.94405317]
[1769526539654,1.70277251,124.0,123.96,19.94405317]
[1769526539952,413.1523,124.05,123.96,19.94405317]
[1769526540143,1.70277251,124.03,123.96,19.94405317]
[1769526540453,1.70277251,124.01,123.96,19.94405317]
[1769526541549,1.70277251,124.01,123.98,19.94405317]
[1769526541952,1.70277251,124.03,123.98,19.94405317]
[1769526542250,1.70277251,124.05,123.99,19.94405317]
[1769526543049,1.70277251,124.05,123.99,27.21195317]
[1769526543449,1.70277251,124.05,124.0,19.94405317]
[1769526544852,1.70277251,124.03,123.98,19.94405317]
[1769526545354,1.70277251,124.01,123.98,19.94405317]
[1769526545949,8.97017251,124.01,123.95,19.94405317]
[1769526546146,1.70277251,124.01,123.95,19.94405317]
[1769526546352,1.70277251,124.03,123.95,21.64682568]
[1769526547560,1.70277251,124.04,123.98,19.94405317]
[1769526548958,8.96827251,124.04,123.98,27.21285317]
[1769526549654,1.70277251,124.04,123.99,19.94405317]
[1769526549849,1.70277251,124.05,124.01,19.94405317]
[1769526550358,8.96767251,124.05,123.98,19.94405317]
[1769526551359,7.2655,124.04,123.98,19.94405317]
[1769526551759,1.70277251,124.05,123.98,19.94405317]
[1769526552062,1.70277251,124.1,124.01,21.64682568]
[1769526552361,1.70277251,124.1,124.04,27.20945317]
[1769526552759,19.67518506,124.1,124.04,17.1622484]
[1769526552960,1.70277251,124.08,123.99,1.70277251]
[1769526553360,8.96597251,124.08,124.02,7.2666]
[1769526554264,1.70277251,124.08,124.02,7.2666]
[1769526555162,8.96597251,124.08,124.02,7.2666]
[1769526555465,8.96597251,124.08,124.01,19.94405317]
[1769526555666,1.70277251,124.08,124.01,19.94405317]
[1769526556167,21.37795757,124.1,124.03,27.20985317]
[1769526556967,28.64005757,124.1,124.03,27.20985317]
[1769526557265,26.93728506,124.1,124.03,27.20985317]
[1769526557472,28.64005757,124.1,124.03,27.20985317]
[1769526558164,8.96487251,124.1,124.04,27.20945317]
[1769526559971,7.2621,124.1,124.04,27.20945317]
[1769526560166,8.96487251,124.1,124.04,27.20945317]
[1769526560869,8.96487251,124.1,124.05,27.20875317]
[1769526560870,1.70277251,124.1,124.05,27.20875317]
[1769526561070,21.07807146,124.12,124.05,27.20875317]
[1769526561071,22.78084397,124.12,124.05,27.20875317]
[1769526562071,30.04164397,124.12,124.05,27.20875317]
[1769526562763,28.33887146,124.12,124.05,27.20875317]
[1769526562966,1.70277251,124.11,124.05,27.20875317]
[1769526563971,1.70277251,124.11,124.06,26.76306035]
[1769526564272,1.70277251,124.13,124.06,26.76306035]
[1769526565076,8.96327251,124.13,124.06,26.76306035]
[1769526565280,8.96327251,124.13,124.07,20.05313127]
[1769526565582,1.70277251,124.13,124.08,20.05313127]
[1769526566269,10.36508927,124.14,124.08,20.05313127]
[1769526567178,20.91980827,124.17,124.09,21.75590378]
[1769526567877,7.258,124.17,124.11,20.05313127]
[1769526568074,1.70277251,124.18,124.11,21.75590378]
[1769526568471,1.70277251,124.19,124.11,21.75590378]
[1769526569171,1.70277251,124.19,124.11,20.05313127]
[1769526569479,8.95947251,124.19,124.13,7.2601]
[1769526569774,8.95947251,124.19,124.13,27.31323127]
[1769526570475,8.96007251,124.18,124.13,20.05313127]
[1769526570975,1.70277251,124.16,124.11,20.05313127]
[1769526571566,1.69863126,124.16,124.11,20.05313127]
[1769526571777,1.69863126,124.16,124.11,27.31453127]
[1769526572373,1.69863126,124.16,124.11,20.05313127]
[1769526572572,1.69863126,124.15,124.11,20.05313127]
[1769526572978,1.69863126,124.13,124.08,20.05313127]
[1769526574179,1.69863126,124.11,124.05,20.05313127]
[1769526574980,1.69863126,124.11,124.06,20.05313127]
[1769526575882,1.69863126,124.11,124.06,27.31743127]
[1769526576378,7.2594,124.15,124.07,20.05313127]
[1769526576580,1.69863126,124.15,124.07,20.05313127]
[1769526576774,1.69863126,124.17,124.1,1.69863126]
[1769526576980,1.69863126,124.18,124.11,20.05313127]
[1769526577170,1.69863126,124.18,124.12,7.2608]
[1769526577370,1.69863126,124.18,124.12,27.31393127]
[1769526577574,26.47383576,124.19,124.12,27.31393127]
[1769526577773,7.2573,124.18,124.12,20.05313127]
[1769526578173,1.40206684,124.2,124.12,20.05313127]
[1769526578680,20.6191026,124.2,124.12,20.05313127]
[1769526579676,19.21703576,124.18,124.09,27.31533127]
[1769526579976,19.21703576,124.18,124.1,20.05313127]
[1769526580178,7.2579,124.17,124.11,27.31453127]
[1769526580679,19.21703576,124.18,124.11,27.31453127]
[1769526581877,26.47443576,124.18,124.11,27.31453127]
[1769526582075,26.47443576,124.18,124.12,7.2607]
[1769526582383,1.40206684,124.2,124.13,20.05313127]
[1769526582778,8.65816684,124.2,124.13,27.31313127]
[1769526584189,8.65816684,124.2,124.14,20.05313127]
[1769526584376,8.65816684,124.2,124.14,27.31263127]
[1769526584377,7.2561,124.2,124.14,27.31263127]
[1769526585483,7.2561,124.2,124.14,20.05313127]
[1769526586482,23.54912185,124.21,124.14,20.05313127]
[1769526586783,23.54912185,124.21,124.14,27.31273127]
[1769526587285,7.2561,124.2,124.14,20.05313127]
[1769526588377,23.54912185,124.21,124.14,27.31263127]
[1769526588585,8.65728446,124.22,124.14,20.05313127]
[1769526589587,1.40178446,124.22,124.15,20.05313127]
[1769526589782,19.21703576,124.21,124.13,20.05313127]
[1769526590085,7.2567,124.19,124.13,20.05313127]
[1769526590576,7.2561,124.2,124.13,27.31303127]
[1769526590781,7.2561,124.2,124.14,20.05313127]
[1769526590983,4.48127783,124.2,124.14,20.05313127]
[1769526591885,4.48127783,124.2,124.14,27.31273127]
[1769526592385,8.65728446,124.22,124.15,20.05313127]
[1769526592586,1.40178446,124.22,124.15,27.31213127]
[1769526592985,7.2561,124.2,124.15,20.05313127]
[1769526593886,7.2567,124.19,124.13,27.31323127]
[1769526594083,19.21703576,124.19,124.11,20.05313127]
[1769526594288,24.7050808,124.21,124.11,20.05313127]
[1769526594586,7.2561,124.2,124.14,20.89727473]
[1769526595478,20.37299471,124.2,124.12,20.89727473]
[1769526595675,20.37299471,124.2,124.08,112.9783]
[1769526595676,20.37299471,124.19,124.1,20.89727473]
[1769526595879,20.37299471,124.18,124.1,20.89727473]
[1769526596081,24.7050808,124.18,124.1,20.89727473]
[1769526596683,7.259,124.15,124.1,20.89727473]
[1769526596887,24.7050808,124.15,124.06,20.89727473]
[1769526597386,7.2608,124.12,124.06,20.89727473]
[1769526597583,1.6999826,124.11,124.06,20.89727473]
[1769526597978,1.6999826,124.13,124.06,20.89727473]
[1769526598576,8.9602826,124.13,124.06,20.89727473]
[1769526599081,1.6999826,124.11,124.06,20.89727473]
[1769526599281,1.6999826,124.11,124.06,28.16157473]
[1769526599677,7.2608,124.12,124.06,28.16157473]
[1769526600087,7.2614,124.11,124.04,28.16237473]
[1769526600286,20.37299471,124.12,124.05,20.89727473]
[1769526600484,24.70947945,124.15,124.05,20.89727473]
[1769526600688,24.70947945,124.15,124.04,113.0166]
[1769526600689,7.26,124.14,124.08,20.89727473]
[1769526601383,4.33648474,124.18,124.1,20.89727473]
[1769526601384,7.2589,124.16,124.1,20.89727473]
[1769526601988,20.37299471,124.16,124.06,20.89727473]
[1769526602690,27.63189471,124.16,124.08,28.16027473]
[1769526602888,27.63189471,124.16,124.09,20.89727473]
[1769526603188,27.63189471,124.16,124.09,28.15977473]
[1769526603387,7.2589,124.16,124.1,20.89727473]
[1769526604195,7.259,124.15,124.1,20.89727473]
[1769526604386,27.63199471,124.15,124.06,20.89727473]
[1769526605184,7.2597,124.14,124.07,7.2633]
[1769526605386,7.2597,124.14,124.07,20.89727473]
[1769526605891,7.2603,124.13,124.07,20.89727473]
[1769526606189,20.37299471,124.13,124.03,20.89727473]
[1769526606591,24.70947945,124.12,124.04,20.89727473]
[1769526607992,7.2618,124.11,124.04,28.16237473]
[1769526608184,24.70947945,124.12,124.04,20.89727473]
[1769526608393,4.33648474,124.12,124.04,20.89727473]
[1769526608797,4.33648474,124.12,124.06,20.89727473]
[1769526608997,20.37299471,124.15,124.06,20.89727473]
[1769526609393,117.23388474,124.18,124.07,20.89727473]
[1769526609394,20.37299471,124.17,124.07,20.89727473]
[1769526610595,7.2592,124.15,124.07,20.89727473]
[1769526610997,20.37299471,124.15,124.07,20.89727473]
[1769526611191,24.70947945,124.15,124.07,20.89727473]
[1769526611397,7.2602,124.13,124.07,28.16097473]
[1769526611593,7.2602,124.13,124.07,20.89727473]
[1769526612900,24.70947945,124.15,124.04,113.0176]
[1769526612901,27.63399471,124.12,124.04,20.89727473]
[1769526613103,31.97047945,124.12,124.04,20.89727473]
[1769526613305,11.59748474,124.12,124.04,20.89727473]
[1769526614190,7.26,124.14,124.08,20.89727473]
[1769526615102,7.259,124.15,124.08,28.16027473]
[1769526615811,7.2596,124.14,124.08,28.16027473]
[1769526616112,20.37299471,124.14,124.06,20.89727473]
[1769526616401,27.63319471,124.14,124.06,20.89727473]
[1769526616602,7.2602,124.14,124.08,28.16037473]
[1769526616803,4.33648474,124.16,124.08,28.16037473]
[1769526617003,24.70947945,124.16,124.08,28.16037473]
[1769526617209,24.70947945,124.16,124.09,28.15977473]
[1769526617210,7.2591,124.15,124.09,28.15977473]
[1769526617517,112.8879,124.19,124.06,112.9965]
[1769526617518,137.59737945,124.19,124.1,20.89727473]
[1769526617809,7.258,124.17,124.1,20.89727473]
[1769526618801,7.2587,124.16,124.1,20.89727473]
[1769526619207,20.37299471,124.18,124.1,28.15927473]
[1769526620506,7.2579,124.17,124.11,28.15857473]
[1769526620803,20.37299471,124.18,124.11,20.89727473]
[1769526621011,24.70947945,124.19,124.09,20.89727473]
[1769526621411,31.96677945,124.19,124.12,20.89727473]
[1769526621609,7.2573,124.19,124.12,20.89727473]
[1769526622306,25.25294371,124.19,124.12,20.89727473]
[1769526622502,25.25294371,124.19,124.09,20.42762813]
[1769526623005,25.25294371,124.19,124.11,20.42762813]
[1769526623503,25.25294371,124.19,124.12,27.68842813]
[1769526623504,7.2573,124.18,124.12,27.68842813]
[1769526626811,7.2579,124.17,124.12,20.42762813]
[1769526627505,32.51014371,124.19,124.12,20.42762813]
[1769526627712,1.69841028,124.17,124.12,20.42762813]
[1769526629204,1.69841028,124.15,124.12,20.42762813]
[1769526631207,1.69841028,124.19,124.13,20.07343691]
[1769526631401,22.11265531,124.22,124.13,20.07343691]
[1769526631605,1.69841028,124.2,124.13,20.07343691]
[1769526632911,1.69841028,124.2,124.15,27.33233691]
[1769526633307,1.69841028,124.23,124.16,20.07343691]
[1769526633610,1.69681829,124.23,124.16,20.07343691]
[1769526634004,7.7068558,124.24,124.18,20.07343691]
[1769526635009,7.7068558,124.24,124.18,27.33063691]
[1769526635505,6.01003751,124.24,124.19,20.07343691]
[1769526636411,13.26383751,124.24,124.19,20.07343691]
[1769526636608,6.01003751,124.24,124.19,20.07343691]
[1769526637014,3.751e-05,124.24,124.19,20.07343691]
[1769526637217,3.751e-05,124.24,124.19,27.32963691]
[1769526637414,3.751e-05,124.24,124.2,20.07343691]
[1769526640710,3.751e-05,124.24,124.16,20.07343691]
[1769526641216,7.2545,124.23,124.16,27.33163691]
[1769526641415,20.71090836,124.24,124.17,20.07343691]
[1769526642214,27.96480836,124.24,124.17,27.33103691]
[1769526642715,20.71090836,124.24,124.17,20.07343691]
[1769526642916,7.2544,124.23,124.17,20.07343691]
[1769526643308,20.71090836,124.24,124.17,20.07343691]
[1769526646022,7.2545,124.23,124.17,20.07343691]
[1769526647221,20.71087085,124.22,124.15,20.07343691]
[1769526647421,20.71087085,124.22,124.11,20.07343691]
[1769526647422,20.71087085,124.19,124.11,20.07343691]
[1769526649120,7.2579,124.17,124.11,20.07343691]
[1769526649518,7.2586,124.16,124.11,20.07343691]
[1769526649722,20.71087085,124.17,124.11,20.07343691]
[1769526651927,20.71087085,124.17,124.05,113.0082]
[1769526651928,20.71087085,124.16,124.08,20.07343691]
[1769526652130,20.71087085,124.15,124.08,20.07343691]
[1769526652719,25.03853034,124.14,124.05,20.07343691]
[1769526653120,27.97187085,124.12,124.05,20.07343691]
[1769526653327,20.71087085,124.11,124.03,27.33903691]
[1769526653825,20.71087085,124.11,124.04,20.07343691]
[1769526654218,25.75590547,124.14,124.05,20.87971054]
[1769526654928,25.75590547,124.14,124.07,20.87971054]
[1769526655328,25.75590547,124.17,124.08,20.87971054]
[1769526655533,21.42824598,124.22,124.14,20.87971054]
[1769526655833,28.68334598,124.22,124.14,20.87971054]
[1769526656031,25.75590547,124.22,124.14,20.87971054]
[1769526656427,7.2557,124.21,124.14,20.87971054]
[1769526657134,25.75590547,124.22,124.14,20.87971054]
[1769526657929,33.01100547,124.22,124.14,28.13911054]
[1769526660138,25.75590547,124.22,124.14,28.13911054]
[1769526661641,21.42824598,124.21,124.14,20.87971054]
[1769526661842,21.42824598,124.21,124.11,112.9523]
[1769526661843,21.42824598,124.21,124.11,20.87971054]
[1769526662441,21.42824598,124.21,124.12,20.87971054]
[1769526663542,4.32765949,124.23,124.14,20.87971054]
[1769526663745,21.42828349,124.24,124.14,20.87971054]
[1769526664046,41.96622919,124.26,124.14,20.87971054]
[1769526664239,58.65849422,124.32,124.23,112.8416]
[1769526664543,112.7009,124.4,124.23,112.8416]
[1769526664544,62.98615371,124.35,124.23,112.8416]
[1769526664747,62.98615371,124.35,124.25,7.2529]
[1769526665146,58.65849422,124.35,124.26,8.34024651]
[1769526665451,4.32765949,124.36,124.27,121.14954651]
[1769526665744,7.2458,124.38,124.28,8.34024651]
[1769526665949,7.2458,124.38,124.29,8.34024651]
[1769526666241,4.32765949,124.36,124.24,112.8359]
[1769526666643,7.248,124.34,124.23,112.8416]
[1769526667245,55.79451305,124.33,124.23,112.8416]
[1769526667546,63.04341305,124.33,124.23,7.2541]
[1769526668349,55.79451305,124.33,124.24,120.0887]
[1769526668842,55.79451305,124.33,124.24,7.2534]
[1769526670042,54.39451305,124.33,124.25,7.2528]
[1769526670545,51.46685356,124.33,124.25,7.2528]
[1769526670746,55.79451305,124.36,124.25,112.8274]
[1769526671443,51.46685356,124.35,124.23,112.8437]
[1769526671844,51.46685356,124.35,124.24,112.8364]
[1769526672556,51.46685356,124.32,124.2,434.3734]
[1769526673152,58.71595356,124.32,124.22,7.2547]
[1769526673650,58.71595356,124.32,124.21,112.8641]
[1769526674547,51.46685356,124.32,124.23,7.2541]
[1769526675352,51.46685356,124.32,124.23,112.8396]
[1769526675648,51.46685356,124.35,124.24,112.8335]
[1769526675849,52.86731233,124.35,124.24,112.8335]
[1769526676249,52.86731233,124.35,124.26,7.2524]
[1769526676852,60.11491233,124.35,124.24,120.0869]
[1769526677048,60.11491233,124.35,124.24,7.2534]
[1769526677350,51.46685356,124.32,124.22,112.851]
[1769526677862,51.46685356,124.32,124.23,7.2541]
[1769526678151,51.46685356,124.32,124.22,112.851]
[1769526678352,51.46685356,124.32,124.23,7.74394086]
[1769526678555,51.46685356,124.32,124.24,7.74394086]
[1769526678747,51.46685356,124.32,124.25,7.74394086]
[1769526678946,51.46685356,124.32,124.26,7.74394086]
[1769526679153,51.46685356,124.32,124.27,7.74394086]
[1769526679352,51.46685356,124.32,124.28,7.74394086]
[1769526679654,51.46685356,124.32,124.29,7.74394086]
[1769526679850,51.46685356,124.32,124.23,112.8438]
[1769526680550,52.86731233,124.35,124.25,112.8281]
[1769526681054,7.2471,124.37,124.21,4.32765949]
[1769526681254,56.20258294,124.45,124.35,112.7365]
[1769526681452,56.20258294,124.45,124.36,112.7263]
[1769526681647,56.20258294,124.45,124.37,112.7186]
[1769526682250,56.20258294,124.48,124.4,112.6918]
[1769526682448,56.20258294,124.48,124.41,112.6799]
[1769526682651,56.20258294,124.48,124.4,112.6918]
[1769526682652,355.31024243,124.5,124.4,112.6918]
[1769526682853,350.98258294,124.5,124.41,7.2435]
[1769526683047,56.20258294,124.49,124.38,112.7091]
[1769526683250,4.32765949,124.47,124.38,7.2452]
[1769526683454,60.53024243,124.47,124.38,7.2452]
[1769526683753,60.53024243,124.47,124.38,119.9546]
[1769526684056,60.53024243,124.47,124.39,119.9457]
[1769526684257,56.20258294,124.49,124.39,112.6994]
[1769526684456,56.20258294,124.49,124.42,7.2429]
[1769526684651,6.01003751,124.51,124.42,112.6697]
[1769526684849,6.01003751,124.51,124.43,112.6641]
[1769526685053,3.751e-05,124.51,124.45,112.6412]
[1769526685561,3.751e-05,124.51,124.48,7.2393]
[1769526686255,3.751e-05,124.51,124.48,119.8581]
[1769526686659,3.751e-05,124.51,124.48,7.2393]
[1769526687054,3.751e-05,124.51,124.46,7.2407]
[1769526687258,3.751e-05,124.51,124.44,112.6494]
[1769526687562,3.751e-05,124.51,124.46,112.6371]
[1769526687756,3.751e-05,124.51,124.46,7.2405]
[1769526688850,3.751e-05,124.51,124.44,7.2418]
[1769526689056,3.751e-05,124.51,124.4,112.6836]
[1769526689057,60.53027994,124.51,124.4,112.6836]
[1769526689358,56.20262045,124.51,124.44,119.8974]
[1769526689662,56.20262045,124.51,124.41,112.6816]
[1769526690164,56.20262045,124.51,124.43,7.2424]
[1769526690353,56.20262045,124.51,124.41,112.6816]
[1769526690757,56.20262045,124.51,124.42,7.243]
[1769526690954,56.20258294,124.5,124.36,229.77555949]
[1769526691255,56.20258294,124.5,124.38,7.2453]
[1769526691256,67.77024243,124.48,124.38,7.2453]
[1769526691455,56.20258294,124.47,124.36,112.7196]
[1769526691650,56.20258294,124.47,124.36,112.7266]
[1769526691850,55.96137691,124.47,124.37,120.03425459]
[1769526692063,55.96137691,124.47,124.38,7.31505459]
[1769526692264,63.20217691,124.47,124.36,7.2465]
[1769526692562,112.6328,124.47,124.36,7.2465]
[1769526692752,112.6328,124.47,124.33,117.08295949]
[1769526692753,4.32765949,124.45,124.33,433.8153]
[1769526692953,7.2424,124.44,124.35,7.2471]
[1769526693151,4.32765949,124.46,124.36,7.31552582]
[1769526693354,4.32765949,124.46,124.35,112.7334]
[1769526693550,4.32765949,124.46,124.36,120.04131055]